bitfinex/quotes_ETHUSD_20241204
["timestamp","ask_amount","ask_price","bid_price","bid_amount"]
[1733326901842,9.1,3841.5,3841.4,2.60321]
[1733326902048,9.2,3841.5,3841.4,2.60321]
[1733326902235,0.2,3840.9,3840.8,2.6036]
[1733326902676,9.1,3840.9,3840.8,2.6036]
[1733326902834,0.2,3840.6,3840.5,2.60382]
[1733326904079,0.1,3840.7,3840.6,2.60375]
[1733326904373,8.9,3840.8,3840.7,2.60369]
[1733326904674,9.97111109,3840.8,3840.7,2.60369]
[1733326905064,9.87111109,3840.8,3840.7,2.60369]
[1733326905372,1.5064,3841.4,3840.5,2.60382]
[1733326905373,7.59822,3841.3,3841.2,5.60335]
[1733326906972,2.16011782,3841.9,3837.9,0.5375]
[1733326906973,0.3,3840.0,3837.9,0.5375]
[1733326907285,3.62337,3840.2,3837.9,0.5375]
[1733326907286,1.99487,3839.5,3839.4,2.60453]
[1733326907448,2.224357,3839.5,3839.4,2.60453]
[1733326907640,1.99487,3839.4,3837.9,0.5375]
[1733326907838,1.99487,3839.4,3839.3,2.60464]
[1733326908479,1.99487,3839.4,3837.9,0.5375]
[1733326908480,1.7266,3838.2,3836.8,2.60628]
[1733326908652,3.72147,3838.2,3838.1,2.60545]
[1733326908983,2.52147,3838.2,3838.1,2.60545]
[1733326909283,1.99487,3838.2,3838.1,2.60545]
[1733326910279,1.99487,3838.2,3838.1,5.60545]
[1733326910483,2.414357,3838.2,3838.1,2.60545]
[1733326910864,2.514357,3838.2,3838.1,2.60545]
[1733326911462,1.99487,3838.2,3838.1,2.60545]
[1733326911662,0.2,3839.0,3838.1,2.60545]
[1733326911663,9.1,3839.0,3838.9,2.60491]
[1733326911865,8.9,3839.1,3839.0,2.60484]
[1733326912405,8.9,3839.3,3839.2,2.6047]
[1733326912611,2.38855,3839.4,3839.3,5.60464]
[1733326913214,1.5424,3840.6,3840.3,2.60396]
[1733326913215,8.9,3840.4,3840.3,2.60396]
[1733326915114,8.9,3840.5,3840.3,2.60396]
[1733326915314,7.59809,3841.2,3841.0,2.60348]
[1733326916631,1e-05,3841.1,3841.0,7.21088]
[1733326916835,1e-05,3841.1,3841.0,5.60348]
[1733326917433,8.9,3842.2,3841.8,2.60294]
[1733326917635,8.9,3842.2,3841.5,2.60311]
[1733326917636,8.9,3842.3,3842.2,2.60267]
[1733326917809,9.42331182,3842.3,3842.2,2.60267]
[1733326918409,10.395643,3842.3,3842.2,2.60267]
[1733326918732,9.42331182,3842.3,3842.2,2.60267]
[1733326919232,9.62331182,3842.3,3842.2,2.60267]
[1733326919440,9.1,3841.8,3841.7,2.60301]
[1733326919731,10.7162,3841.8,3841.7,1.7161146]
[1733326919942,11.79782,3841.8,3841.3,3.0]
[1733326920441,0.3,3841.0,3840.6,2.60369]
[1733326920602,0.3,3841.0,3840.2,2.60401]
[1733326920933,0.3,3841.0,3839.8,2.60429]
[1733326920934,8.9,3840.9,3840.8,2.60362]
[1733326921238,3.33,3841.5,3840.8,2.60362]
[1733326921239,0.72686,3841.5,3841.4,2.60321]
[1733326921628,0.72686,3841.5,3841.4,5.60321]
[1733326922163,9.62686,3841.5,3841.4,2.60321]
[1733326922363,9.62686,3841.5,3839.9,2.60423]
[1733326922364,1.873,3841.3,3841.2,2.60333]
[1733326922744,0.2,3840.7,3840.6,2.60375]
[1733326923272,0.2,3840.7,3838.2,2.60534]
[1733326923273,0.2,3839.7,3838.9,2.60491]
[1733326923421,0.2,3839.7,3838.8,1.5025]
[1733326923422,0.2,3839.9,3839.8,2.6043]
[1733326923752,9.1,3839.9,3839.8,2.6043]
[1733326924054,9.1,3839.9,3838.4,2.60523]
[1733326924055,0.2,3839.3,3838.3,1.5025]
[1733326924226,0.2,3839.1,3839.0,2.60484]
[1733326924430,8.9,3839.3,3839.2,2.6047]
[1733326925155,2.3884,3839.3,3839.2,2.6047]
[1733326925364,2.38159639,3839.3,3839.2,2.6047]
[1733326925533,2.84975603,3839.3,3839.2,2.6047]
[1733326925942,0.2,3839.1,3839.0,2.60481]
[1733326926637,8.9,3839.2,3839.1,2.60477]
[1733326926844,0.1,3839.9,3839.8,2.6043]
[1733326927237,0.2,3839.3,3838.0,2.60552]
[1733326927438,0.2,3839.3,3839.2,2.60464]
[1733326928145,10.02,3839.3,3839.2,2.60464]
[1733326928489,10.02,3839.3,3838.6,2.60511]
[1733326928490,1.5741,3838.7,3838.6,2.60511]
[1733326928834,1.7741,3838.7,3838.6,2.60511]
[1733326929039,1.5741,3838.7,3838.6,2.60511]
[1733326929277,9.1,3838.7,3838.6,2.60511]
[1733326929604,9.1,3838.7,3838.3,2.60525]
[1733326929605,0.1,3838.4,3838.3,2.60525]
[1733326929739,8.9,3838.6,3837.8,2.6056]
[1733326929935,8.9,3838.6,3838.5,2.60518]
[1733326930180,0.2,3838.0,3837.9,2.60559]
[1733326930488,0.2,3837.8,3837.7,2.6057]
[1733326930652,8.9,3837.9,3837.8,2.60565]
[1733326930877,0.1,3838.0,3837.9,2.60559]
[1733326931165,0.3,3838.0,3836.6,4.17403]
[1733326931374,0.3,3838.0,3832.3,0.01338955]
[1733326931375,0.2,3837.4,3837.3,2.60599]
[1733326931691,9.2,3837.6,3837.5,2.60586]
[1733326932247,9.1,3837.6,3837.5,2.60586]
[1733326932578,8.8785,3837.6,3837.5,2.55586]
[1733326932895,8.8785,3837.6,3837.5,5.55586]
[1733326933667,8.9785,3837.6,3837.5,2.55586]
[1733326936640,8.8785,3837.6,3837.5,2.55586]
[1733326936840,8.8785,3837.6,3837.5,5.55586]
[1733326937070,9.1785,3837.6,3837.5,2.55586]
[1733326937276,8.8785,3837.5,3836.7,3.0]
[1733326937473,0.2,3837.1,3837.0,2.60619]
[1733326937803,0.2,3837.1,3836.8,2.60632]
[1733326937804,0.3,3837.1,3836.8,2.60632]
[1733326937949,0.1,3836.9,3836.8,2.60632]
[1733326938262,0.2,3836.7,3836.6,2.60647]
[1733326939679,8.8785,3836.8,3836.7,2.6064]
[1733326939863,8.8785,3836.8,3836.7,5.6064]
[1733326940190,3.66582,3836.8,3836.7,5.6064]
[1733326941460,3.66582,3836.8,3836.7,2.6064]
[1733326941778,3.96582,3836.8,3836.7,2.6064]
[1733326941944,0.3,3836.4,3835.5,2.60722]
[1733326942288,0.3,3836.4,3836.3,2.60667]
[1733326942689,4.219902,3836.8,3836.7,2.6064]
[1733326942690,3.66582,3836.8,3836.7,2.6064]
[1733326942859,1e-05,3836.8,3836.7,2.6064]
[1733326943453,1e-05,3836.8,3836.7,5.6064]
[1733326944861,1e-05,3836.8,3836.7,5.63245943]
[1733326945056,1.6018,3838.4,3838.3,2.60532]
[1733326945358,0.40146829,3840.4,3838.0,2.60552]
[1733326945359,0.1,3839.3,3838.6,2.60511]
[1733326945560,2.0,3840.0,3838.6,2.60511]
[1733326945561,0.53186914,3839.0,3838.9,5.60491]
[1733326946270,0.3,3839.6,3839.5,2.6045]
[1733326946457,0.81630611,3839.6,3839.5,2.6045]
[1733326946657,1.01630611,3839.6,3839.5,2.6045]
[1733326946890,0.82613611,3839.6,3839.5,2.6045]
[1733326947392,0.52613611,3839.6,3839.5,2.6045]
[1733326947790,2.3,3840.0,3839.9,2.60423]
[1733326947995,2.2,3840.0,3839.9,2.60423]
[1733326948485,2.0,3840.0,3839.9,2.60423]
[1733326948692,6.66,3840.6,3840.5,2.60382]
[1733326949484,7.1776408,3840.6,3840.5,2.60382]
[1733326949762,6.66,3840.6,3840.5,2.60382]
[1733326951186,0.2,3840.4,3839.9,5.60419]
[1733326951357,0.2,3840.2,3840.1,2.60409]
[1733326951757,0.2,3840.0,3839.9,2.60421]
[1733326952005,8.888,3840.6,3839.1,1.5777]
[1733326952164,6.66,3840.6,3840.5,2.60382]
[1733326952477,0.15066,3840.6,3840.5,5.60382]
[1733326953066,0.30157,3840.8,3840.6,3.0]
[1733326953289,0.30157,3840.8,3840.7,5.60369]
[1733326954372,1.017727,3840.8,3840.7,5.60369]
[1733326955104,0.30157,3840.8,3840.7,5.60369]
[1733326956064,0.2,3840.3,3840.0,2.60414]
[1733326956315,0.2,3840.1,3839.6,2.60439]
[1733326956520,0.2,3839.6,3838.9,2.60486]
[1733326956815,0.2,3839.2,3837.9,1.6461]
[1733326956964,0.1,3839.1,3838.8,2.60497]
[1733326957170,0.2,3838.7,3838.0,2.6055]
[1733326957492,0.2,3838.7,3838.5,2.60517]
[1733326957670,0.2,3838.4,3837.4,1.6165]
[1733326957872,0.2,3838.4,3838.3,2.60532]
[1733326958067,0.2,3838.2,3837.4,1.6165]
[1733326958370,0.1,3838.3,3838.1,2.60539]
[1733326958703,0.2,3838.4,3838.2,2.60538]
[1733326959114,0.51376146,3838.9,3837.4,1.6165]
[1733326959115,0.2,3838.7,3837.6,2.60579]
[1733326959402,0.2,3838.2,3837.9,2.60554]
[1733326959605,0.2,3838.2,3838.0,2.60551]
[1733326959989,0.2,3838.2,3838.1,2.60545]
[1733326960575,0.2,3838.2,3838.1,5.60545]
[1733326960808,0.3,3838.8,3838.1,3.0]
[1733326960994,0.3,3838.8,3837.3,2.60598]
[1733326960995,0.2,3839.4,3839.3,2.60464]
[1733326961167,0.71948727,3839.4,3839.3,2.60464]
[1733326962303,0.2,3839.4,3839.3,2.60464]
[1733326963121,0.1,3839.0,3838.9,2.60485]
[1733326963486,0.2,3839.1,3838.5,2.60517]
[1733326963820,0.3,3839.1,3839.0,2.60484]
[1733326964020,0.1,3838.8,3838.5,2.60517]
[1733326964171,0.1,3838.8,3838.7,2.60504]
[1733326964372,0.3,3838.8,3837.8,1.6384]
[1733326964615,0.2,3838.3,3837.3,1.505]
[1733326964905,0.3,3838.6,3838.4,2.60525]
[1733326965419,0.52083875,3838.8,3838.7,2.60504]
[1733326965587,0.19895692,3839.3,3839.2,2.6047]
[1733326966275,0.29895692,3839.3,3839.2,2.6047]
[1733326966667,6.66,3839.5,3839.4,2.60457]
[1733326967020,0.14875,3839.5,3839.4,7.12187]
[1733326967229,1e-05,3839.5,3839.4,7.12187]
[1733326968298,1e-05,3839.5,3839.4,7.67187]
[1733326968484,1e-05,3839.5,3839.4,7.12187]
[1733326969286,1e-05,3839.5,3839.4,7.67187]
[1733326969718,1e-05,3839.5,3839.4,7.12187]
[1733326972206,1e-05,3839.5,3839.4,5.60457]
[1733326972399,1e-05,3839.5,3839.4,5.63061279]
[1733326973132,1e-05,3839.5,3839.4,5.60457]
[1733326975044,1e-05,3839.5,3839.4,2.60457]
[1733326975740,0.30157,3840.8,3839.4,2.60457]
[1733326975741,5.35823,3840.9,3840.7,2.60369]
[1733326975890,1.45289,3840.9,3840.8,4.22172]
[1733326976091,1e-05,3840.9,3840.8,4.22172]
[1733326976497,1e-05,3840.9,3840.8,7.22172]
[1733326977834,1e-05,3840.9,3840.8,5.60362]
[1733326978601,0.19896692,3840.9,3840.8,5.60362]
[1733326979035,0.38454361,3840.9,3840.8,5.60362]
[1733326979335,0.38454361,3840.9,3839.7,2.60433]
[1733326979336,0.19895692,3840.4,3840.3,2.60396]
[1733326979635,0.19895692,3840.4,3839.4,1.6095]
[1733326979636,0.29895692,3840.2,3840.1,2.60403]
[1733326979820,0.18558669,3840.9,3840.3,2.60396]
[1733326979821,0.29895692,3840.4,3840.3,2.60396]
[1733326980237,0.19895692,3840.4,3840.3,2.60396]
[1733326980530,0.28558669,3840.9,3840.7,2.60369]
[1733326980737,1e-05,3840.9,3840.8,2.60362]
[1733326980906,1e-05,3840.9,3840.8,5.60362]
[1733326984944,0.19895692,3840.6,3839.8,2.60425]
[1733326985112,0.10001,3840.9,3839.4,2.60451]
[1733326985113,0.1,3839.8,3839.7,2.60437]
[1733326985516,0.29895692,3839.8,3839.7,2.60437]
[1733326986655,0.19895692,3839.8,3839.7,5.60437]
[1733326987028,0.1,3840.2,3838.9,1.6006]
[1733326987029,0.53112504,3840.6,3840.1,2.60409]
[1733326987239,0.53112504,3840.6,3839.8,3.0]
[1733326987240,0.29895692,3840.7,3840.6,2.60375]
[1733326987970,0.19896692,3840.9,3840.8,2.60362]
[1733326988281,1e-05,3840.9,3840.8,5.60362]
[1733326988751,0.10001,3840.9,3840.8,5.60362]
[1733326989763,0.29896692,3840.9,3840.8,5.60362]
[1733326989929,0.10001,3840.9,3840.8,5.60362]
[1733326990133,1e-05,3840.9,3840.8,5.60362]
[1733326991265,1e-05,3840.9,3840.8,7.11132]
[1733326991578,1e-05,3840.9,3840.8,5.60362]
[1733326994063,0.19895692,3840.3,3840.2,2.60401]
[1733326995185,0.1,3840.4,3840.2,2.60401]
[1733326995186,0.61677514,3840.4,3840.2,2.60401]
[1733326995486,0.51677514,3840.4,3840.3,2.60396]
[1733326995693,1e-05,3840.9,3840.8,2.60362]
[1733326995846,1e-05,3840.9,3840.8,5.60362]
[1733326996947,9.41509,3841.3,3840.9,3.0]
[1733326997149,0.30382,3841.3,3841.2,5.60335]
[1733326998230,1e-05,3841.3,3841.2,7.19765]
[1733326998408,5.51059,3841.5,3841.4,2.60321]
[1733326998607,5.51059,3841.5,3841.4,5.60321]
[1733326999979,5.70954692,3841.5,3841.4,5.60321]
[1733327000817,5.70954692,3841.5,3839.7,0.2602]
[1733327000818,0.19895692,3840.5,3840.4,2.60389]
[1733327001115,0.19895692,3840.5,3839.4,2.60453]
[1733327001116,0.19895692,3840.2,3839.4,1.6481]
[1733327001302,0.19895692,3840.2,3840.1,2.60409]
[1733327001984,3.33,3840.4,3840.3,2.60396]
[1733327002185,0.19895692,3841.3,3840.3,2.60396]
[1733327002410,0.19895692,3841.3,3841.2,5.60335]
[1733327003424,5.51059,3841.5,3841.2,5.60335]
[1733327003425,5.70954692,3841.5,3841.4,5.60321]
[1733327004433,5.80954692,3841.5,3840.4,1.5914]
[1733327004598,0.19895692,3841.1,3841.0,5.60348]
[1733327004980,0.1,3841.3,3841.2,2.60335]
[1733327005196,0.29895692,3840.7,3839.4,4.13804]
[1733327005431,1.5958,3840.9,3840.0,2.60416]
[1733327005432,0.29895692,3840.1,3840.0,2.60416]
[1733327005927,0.1,3841.1,3840.0,1.5235]
[1733327006082,0.1,3841.3,3840.2,5.20806]
[1733327006286,0.1,3841.3,3840.0,1.5235]
[1733327006287,0.1,3841.3,3841.2,2.60335]
[1733327006498,0.661059,3841.3,3841.2,2.60335]
[1733327007695,0.1,3841.3,3841.2,2.60335]
[1733327008109,0.1,3841.3,3841.0,2.60348]
[1733327008310,0.1,3841.1,3841.0,3.0]
[1733327008557,0.1,3841.1,3840.0,1.7835]
[1733327008728,1.6394,3840.8,3840.3,3.0]
[1733327008948,1.6394,3840.8,3840.0,0.26]
[1733327008949,0.1,3840.1,3840.0,0.26]
[1733327009289,1.7449,3840.1,3840.0,0.26]
[1733327009923,2.2949,3840.1,3840.0,0.26]
[1733327010101,0.1,3839.1,3838.7,2.60498]
[1733327010302,0.1,3838.9,3838.7,2.60498]
[1733327010511,0.1,3838.9,3838.4,2.60523]
[1733327010723,0.1,3838.5,3838.4,2.60523]
[1733327010928,0.1,3838.5,3837.5,1.5055]
[1733327010929,0.1,3838.2,3838.0,2.60545]
[1733327011341,0.1,3837.9,3836.8,1.6218]
[1733327011489,0.1,3837.7,3836.8,4.22809]
[1733327011835,0.1,3837.5,3837.3,2.60598]
[1733327011992,1.6396,3838.1,3836.2,1.5471]
[1733327011993,0.1,3837.2,3836.7,2.60635]
[1733327012190,0.1,3837.2,3836.2,4.15378]
[1733327012191,0.1,3837.2,3836.8,2.60633]
[1733327012420,0.1,3837.2,3836.2,1.5471]
[1733327012619,0.1,3837.2,3836.3,2.60667]
[1733327012917,0.1,3836.1,3835.1,0.25484445]
[1733327013217,0.1,3836.1,3834.3,1.5471]
[1733327013218,0.1,3835.5,3835.3,2.60733]
[1733327013422,0.1,3835.8,3834.4,0.0260736]
[1733327013731,0.1,3836.1,3835.9,2.60691]
[1733327014043,0.1,3836.1,3835.7,2.60704]
[1733327014247,0.1,3835.9,3835.7,2.60704]
[1733327014448,0.1,3835.9,3835.8,3.0]
[1733327014616,0.1,3835.9,3835.6,2.60714]
[1733327014820,0.1,3835.7,3835.6,2.60714]
[1733327015056,0.1,3835.7,3834.0,2.60823]
[1733327015220,0.1,3835.7,3835.4,2.60722]
[1733327015416,0.1,3835.7,3834.9,2.60762]
[1733327015720,0.1,3835.7,3834.0,2.60823]
[1733327015928,0.1,3835.7,3834.1,0.02607249]
[1733327016132,0.1,3835.7,3833.8,0.26495505]
[1733327016133,0.1,3835.7,3835.5,2.6072]
[1733327016665,0.1,3835.5,3835.4,2.60727]
[1733327016821,0.1,3835.8,3835.5,2.60719]
[1733327017166,0.1,3835.8,3834.5,2.6079]
[1733327017167,0.1,3836.0,3835.9,2.60695]
[1733327017823,0.1,3836.0,3835.8,2.607]
[1733327018120,0.2,3837.4,3834.3,1.80100876]
[1733327018121,0.1,3836.5,3836.2,3.0]
[1733327018356,0.1,3836.5,3835.3,2.60732]
[1733327018357,1.535,3836.0,3834.3,2.86192876]
[1733327018663,0.1,3835.6,3835.4,2.60722]
[1733327018865,0.1,3835.3,3835.1,2.60744]
[1733327019020,0.1,3835.3,3834.9,2.60762]
[1733327019220,1.6487,3834.9,3832.7,0.2]
[1733327019455,1.6487,3834.9,3834.7,2.60772]
[1733327019969,1.6487,3834.9,3834.1,2.60813]
[1733327020173,0.1,3834.4,3833.8,2.60837]
[1733327020879,0.1,3834.4,3833.9,2.60831]
[1733327021174,0.1,3834.2,3833.8,2.60837]
[1733327021318,1.71357,3834.9,3834.1,2.60811]
[1733327021319,1.5487,3834.9,3834.1,2.60811]
[1733327021525,0.1,3835.2,3835.1,2.60749]
[1733327021957,0.1,3835.4,3835.3,2.60735]
[1733327022262,1.5968,3835.9,3835.8,2.60701]
[1733327022263,1.6968,3835.9,3835.8,2.60701]
[1733327022469,0.1,3835.9,3835.8,5.60701]
[1733327023222,0.1,3836.5,3835.9,3.0]
[1733327023536,0.1,3836.9,3836.8,5.60633]
[1733327023949,0.1,3837.1,3837.0,5.6062]
[1733327025725,0.1,3837.1,3835.7,2.60704]
[1733327025726,0.1,3837.0,3836.7,2.6064]
[1733327025927,0.1,3837.0,3836.9,5.60627]
[1733327026366,0.1,3837.2,3836.9,5.60627]
[1733327026562,0.1,3837.2,3837.1,2.60613]
[1733327026923,0.1,3837.6,3837.3,2.60599]
[1733327027128,0.1,3837.6,3837.5,2.60586]
[1733327027948,1.5936,3838.5,3837.5,2.60586]
[1733327027949,0.1,3837.8,3837.7,5.60572]
[1733327029327,0.1,3838.0,3837.9,2.60559]
[1733327029530,0.1,3839.1,3838.9,3.0]
[1733327029760,0.1,3839.1,3838.8,2.60498]
[1733327029761,0.1,3839.1,3839.0,5.60484]
[1733327030127,0.1,3839.3,3839.0,5.60484]
[1733327030332,0.1,3839.3,3839.2,5.6047]
[1733327031876,0.1,3839.7,3839.4,2.60457]
[1733327032170,0.1,3839.5,3839.3,2.60462]
[1733327032330,0.1,3839.2,3839.1,2.60477]
[1733327032754,0.1,3839.2,3839.1,3.0]
[1733327032957,0.1,3839.2,3839.1,5.60477]
[1733327033170,2.11566374,3839.8,3837.9,1.5013]
[1733327033171,0.1,3838.6,3837.9,1.5013]
[1733327033332,0.1,3838.5,3837.1,2.60609]
[1733327033530,0.1,3838.0,3837.9,2.60559]
[1733327034538,0.1,3837.8,3837.2,4.18572]
[1733327034758,0.1,3837.8,3837.2,2.60602]
[1733327034956,0.51855325,3838.4,3837.7,2.60568]
[1733327034957,0.11855325,3838.4,3837.7,2.60568]
[1733327035163,0.11855325,3838.4,3836.8,2.60633]
[1733327035164,0.11855325,3838.4,3837.8,2.60565]
[1733327035680,0.11855325,3838.4,3836.8,2.60633]
[1733327035832,0.11855325,3838.4,3838.1,2.60545]
[1733327036032,8.9,3839.8,3838.0,1.5065]
[1733327036228,8.9,3839.8,3837.5,2.60581]
[1733327036229,0.52214925,3839.1,3838.5,2.60517]
[1733327036652,1.537,3839.0,3838.3,3.0]
[1733327036867,1.537,3839.0,3837.0,2.60618]
[1733327036868,1.537,3839.0,3838.0,3.0]
[1733327037072,1.537,3839.0,3838.1,2.60544]
[1733327037073,10.437,3839.0,3838.1,2.60544]
[1733327037274,10.437,3839.0,3838.2,3.0]
[1733327037574,1.09591493,3838.9,3838.2,3.0]
[1733327037879,8.9,3838.8,3837.4,3.0]
[1733327038031,9.99591493,3838.9,3837.8,2.60564]
[1733327038380,0.51290866,3838.5,3837.8,3.0]
[1733327038871,0.51290866,3838.5,3838.2,2.60538]
[1733327039248,0.51290866,3838.5,3837.6,3.0]
[1733327039576,0.51290866,3838.5,3838.0,2.60545]
[1733327039771,0.51290866,3838.5,3838.0,2.217629]
[1733327040361,0.51290866,3838.5,3837.6,3.0]
[1733327040362,0.51290866,3838.5,3837.9,3.0]
[1733327040565,0.51290866,3838.5,3837.0,4.5709]
[1733327040753,0.51290866,3838.5,3838.4,2.60525]
[1733327041086,0.51290866,3838.5,3837.7,3.0]
[1733327041282,0.51290866,3838.5,3838.4,2.60525]
[1733327041471,1.537,3839.0,3838.0,2.60547]
[1733327041777,1.537,3839.0,3838.5,2.60517]
[1733327041985,1.537,3839.0,3838.1,3.0]
[1733327042150,1.537,3839.0,3838.4,2.60522]
[1733327042365,0.52296263,3838.6,3838.5,2.60518]
[1733327042564,1.537,3839.0,3838.7,2.60504]
[1733327042764,1.537,3839.0,3838.1,3.0]
[1733327043182,0.51098121,3838.8,3837.6,2.60579]
[1733327043380,0.51098121,3838.8,3838.7,2.60504]
[1733327043990,0.51098121,3838.8,3838.5,2.60513]
[1733327044163,0.51098121,3838.8,3838.2,3.0]
[1733327044164,0.51098121,3838.8,3838.7,2.60504]
[1733327044756,0.51098121,3838.8,3838.7,5.60504]
[1733327045201,1.6207,3838.7,3838.3,3.0]
[1733327045405,1.6207,3838.7,3837.3,2.0686614]
[1733327045406,0.21316812,3838.6,3837.8,2.60561]
[1733327045692,0.21316812,3838.6,3837.3,4.40843]
[1733327045693,9.45,3838.5,3837.4,2.60592]
[1733327045907,9.45,3838.5,3836.4,2.60654]
[1733327045908,9.14161737,3838.4,3836.4,1.5308]
[1733327046051,10.96754269,3838.3,3837.1,2.60608]
[1733327046256,1.39337164,3838.2,3836.4,1.5308]
[1733327046492,10.05175427,3838.2,3836.4,1.5308]
[1733327046852,0.52557549,3837.4,3837.3,2.60599]
[1733327047493,10.05175427,3838.2,3837.0,2.60618]
[1733327047708,10.05175427,3838.2,3836.2,0.25851891]
[1733327047709,0.52401268,3838.4,3837.1,2.6321296]
[1733327047995,3.0,3839.6,3836.5,0.2602]
[1733327047996,8.9,3839.7,3838.7,2.60504]
[1733327048200,1.5311,3839.4,3837.2,1.5308]
[1733327048355,1.5311,3839.4,3837.0,3.31707046]
[1733327048356,1.5311,3839.4,3839.3,2.60464]
[1733327048667,2.04854884,3839.4,3838.7,2.605]
[1733327048867,2.25340372,3839.4,3838.4,2.60519]
[1733327049088,0.24165404,3839.3,3838.4,2.60519]
[1733327049265,2.25340372,3839.4,3838.4,2.60519]
[1733327049266,0.24176419,3839.2,3838.4,2.60519]
[1733327049606,1.73595488,3839.4,3837.9,3.0]
[1733327049774,0.52671478,3838.8,3838.6,2.60505]
[1733327049973,0.52671478,3838.8,3837.9,3.0]
[1733327050176,0.52671478,3838.8,3838.2,2.60532]
[1733327050387,0.52671478,3838.8,3837.9,3.0]
[1733327050388,0.52671478,3838.8,3838.4,2.60522]
[1733327050586,0.52671478,3838.8,3837.9,3.0]
[1733327050927,0.52671478,3838.8,3838.0,2.60551]
[1733327051065,1.86178278,3838.7,3838.0,2.60551]
[1733327051266,1.1113963,3838.6,3837.9,3.0]
[1733327051501,0.24208278,3838.5,3838.0,3.0]
[1733327051803,0.24208278,3838.4,3838.3,2.60532]
[1733327051988,1.6197,3838.7,3838.0,3.0]
[1733327051989,1.6197,3838.7,3838.4,2.60519]
[1733327052206,1.6197,3838.7,3837.9,2.60555]
[1733327052207,0.24250917,3838.6,3838.5,2.60518]
[1733327052505,8.9,3839.3,3838.5,2.60518]
[1733327052506,10.5396,3839.3,3838.8,2.60494]
[1733327052710,10.5396,3839.3,3838.9,2.60489]
[1733327052711,1.94835037,3839.2,3838.9,2.60489]
[1733327052865,0.24275139,3839.1,3838.3,3.0]
[1733327053065,0.24275139,3839.0,3838.9,2.60491]
[1733327053303,0.75565873,3839.0,3838.9,2.60491]
[1733327053997,0.51290734,3839.0,3838.9,2.60491]
[1733327054180,10.5396,3839.3,3839.2,2.6047]
[1733327054509,11.30650436,3839.3,3838.3,3.25375678]
[1733327054666,11.06355329,3839.3,3839.2,2.6047]
[1733327054863,2.40649705,3839.3,3839.2,2.6047]
[1733327055408,2.40649705,3839.3,3839.1,2.60477]
[1733327055611,2.40649705,3839.3,3837.9,2.60556]
[1733327055612,0.24294376,3839.2,3837.6,3.2602]
[1733327055769,0.79452329,3839.1,3838.8,2.60493]
[1733327055975,0.79452329,3839.0,3838.8,2.60493]
[1733327056196,0.79452329,3838.9,3838.8,2.60493]
[1733327056395,0.79452329,3838.9,3838.3,3.0]
[1733327056580,0.79452629,3838.8,3838.5,2.60517]
[1733327056771,0.24294376,3838.7,3838.6,2.60511]
[1733327056968,0.63191554,3838.7,3838.6,2.60511]
[1733327057174,0.24294376,3838.7,3838.6,2.60511]
[1733327057468,0.6319468,3838.7,3838.6,2.60511]
[1733327057718,0.24294376,3838.7,3838.1,5.6054]
[1733327058017,0.24294376,3838.6,3838.1,5.6054]
[1733327058182,0.28087947,3839.1,3838.1,3.0]
[1733327058384,11.08470372,3839.0,3837.9,2.60552]
[1733327058588,0.52201943,3838.7,3838.4,3.0]
[1733327058789,0.52201943,3838.7,3837.9,2.60557]
[1733327058790,1.5238,3838.5,3837.9,2.60557]
[1733327058995,0.63219037,3838.4,3838.0,2.60548]
[1733327059315,0.24314893,3838.3,3838.0,2.61894326]
[1733327059474,0.24314893,3838.2,3838.0,2.61894326]
[1733327059675,0.24314893,3838.1,3838.0,2.61894326]
[1733327060106,1.5238,3838.5,3838.1,2.60539]
[1733327060311,0.24319672,3838.4,3838.1,2.60539]
[1733327060613,0.24319672,3838.3,3838.1,2.60539]
[1733327060918,0.24319672,3838.2,3838.0,0.01346326]
[1733327061211,0.24319672,3838.1,3838.0,0.01346326]
[1733327061918,11.15236997,3838.1,3838.0,0.01346326]
[1733327062076,2.1699,3837.9,3835.8,1.5272]
[1733327062414,0.55,3837.7,3837.0,2.60617]
[1733327062617,1.8272867,3837.6,3836.8,2.60627]
[1733327062818,0.24334348,3837.5,3836.5,2.60654]
[1733327062989,0.24334348,3837.4,3836.2,2.60668]
[1733327063176,0.24334348,3837.3,3836.7,2.60639]
[1733327063374,8.9,3837.5,3835.9,2.60695]
[1733327063375,0.24336579,3837.2,3835.9,2.60695]
[1733327063576,8.9,3837.5,3836.8,2.60632]
[1733327063772,1.30781978,3837.4,3836.6,2.60646]
[1733327063985,1.30781978,3837.4,3835.9,2.60695]
[1733327063986,2.16407631,3836.9,3835.8,1.5272]
[1733327064216,2.16407631,3836.9,3836.5,2.60653]
[1733327064517,0.51897631,3836.9,3836.8,2.60633]
[1733327064718,0.51897631,3836.9,3836.8,5.60633]
[1733327065778,1.6116,3837.8,3837.3,2.60594]
[1733327066215,8.9,3838.1,3837.3,2.60594]
[1733327066417,0.52882535,3837.8,3837.7,2.60572]
[1733327066622,1.6577,3838.8,3837.6,3.0]
[1733327066775,2.82812721,3838.8,3838.5,2.60517]
[1733327067220,1.6577,3838.8,3838.5,2.60517]
[1733327067387,1.6577,3838.8,3837.7,3.0]
[1733327067596,1.6577,3838.8,3838.6,2.60511]
[1733327067792,1.6577,3838.8,3838.7,2.60504]